[Event "*** Titled Tuesday Blitz"]
[Site "Chess.com"]
[Date "2019.04.02"]
[Round "3"]
[White "x-6099009240"]
[Black "hellokostya"]
[Result "0-1"]
[WhiteElo "2348"]
[BlackElo "2508"]
[TimeControl "180+2"]
[EndTime "14:35:55 PDT"]
[Termination "hellokostya won by resignation"]

1. e4 {[%clk 0:03:01.9]} 1... c5 {[%clk 0:02:53.7]} 2. Nf3 {[%clk 0:03:02.9]}
2... e6 {[%clk 0:02:50.5]} 3. d4 {[%clk 0:03:04.8]} 3... cxd4 {[%clk 0:02:50.2]}
4. Nxd4 {[%clk 0:03:06.7]} 4... Nc6 {[%clk 0:02:50.7]} 5. Nc3 {[%clk 0:03:08.3]}
5... Qc7 {[%clk 0:02:51.2]} 6. Be3 {[%clk 0:03:09.5]} 6... a6 {[%clk 0:02:49.9]}
7. Qd2 {[%clk 0:03:11]} 7... Nf6 {[%clk 0:02:48.5]} 8. O-O-O {[%clk 0:03:12.9]}
8... Bb4 {[%clk 0:02:44.2]} 9. f3 {[%clk 0:03:13]} 9... Ne7 {[%clk 0:02:45.3]}
10. Qe1 {[%clk 0:02:53.3]} 10... Bxc3 {[%clk 0:02:44.3]} 11. Qxc3 {[%clk
0:02:53.5]} 11... Qxc3 {[%clk 0:02:45.3]} 12. bxc3 {[%clk 0:02:55.4]} 12... d5
{[%clk 0:02:44]} 13. e5 {[%clk 0:02:51.4]} 13... Nd7 {[%clk 0:02:45.2]} 14. f4
{[%clk 0:02:52.7]} 14... b6 {[%clk 0:02:39.4]} 15. c4 {[%clk 0:02:49.9]} 15...
Bb7 {[%clk 0:02:38.2]} 16. cxd5 {[%clk 0:02:50]} 16... Nxd5 {[%clk 0:02:39.2]}
17. Bd2 {[%clk 0:02:51.3]} 17... Rc8 {[%clk 0:02:37.7]} 18. Kb2 {[%clk
0:02:50.9]} 18... b5 {[%clk 0:02:33.5]} 19. Bc1 {[%clk 0:02:48.1]} 19... N7b6
{[%clk 0:02:30.1]} 20. Rg1 {[%clk 0:02:40.7]} 20... Na4+ {[%clk 0:02:28.3]} 21.
Ka1 {[%clk 0:02:41.7]} 21... h5 {[%clk 0:02:23.3]} 22. Be2 {[%clk 0:02:37.8]}
22... g6 {[%clk 0:02:24]} 23. Bf3 {[%clk 0:02:38.6]} 23... Kf8 {[%clk
0:02:09.3]} 24. Rd3 {[%clk 0:02:33.5]} 24... Kg7 {[%clk 0:02:08.6]} 25. g3
{[%clk 0:02:34.5]} 25... Rc3 {[%clk 0:02:08.1]} 26. Rxc3 {[%clk 0:02:33.1]}
26... Naxc3 {[%clk 0:02:09]} 27. Bd2 {[%clk 0:02:21.7]} 27... Rc8 {[%clk
0:02:04.2]} 28. Re1 {[%clk 0:02:02]} 28... Rc4 {[%clk 0:01:59.6]} 29. Bxc3
{[%clk 0:01:51.4]} 29... Rxc3 {[%clk 0:01:59.7]} 30. Kb2 {[%clk 0:01:52.7]}
30... Rc4 {[%clk 0:01:55.3]} 31. Nb3 {[%clk 0:01:41.7]} 31... Rc7 {[%clk
0:01:43.5]} 32. Na5 {[%clk 0:01:27]} 32... Ba8 {[%clk 0:01:42.4]} 33. a3 {[%clk
0:01:07.6]} 33... Rc8 {[%clk 0:01:37.3]} 34. Bxd5 {[%clk 0:00:58]} 34... Bxd5
{[%clk 0:01:32.7]} 35. Re3 {[%clk 0:00:58.4]} 35... h4 {[%clk 0:01:32.5]} 36.
Rc3 {[%clk 0:00:59.4]} 36... Rh8 {[%clk 0:01:31.1]} 37. g4 {[%clk 0:00:58.4]}
37... h3 {[%clk 0:01:28.7]} 38. Nb3 {[%clk 0:00:49.1]} 38... g5 {[%clk
0:01:25.3]} 39. f5 {[%clk 0:00:47]} 39... exf5 {[%clk 0:01:22.4]} 40. gxf5
{[%clk 0:00:48.9]} 40... Re8 {[%clk 0:01:22.4]} 41. Re3 {[%clk 0:00:44.7]} 41...
g4 {[%clk 0:01:14.1]} 42. Nd4 {[%clk 0:00:38.6]} 42... Kh6 {[%clk 0:01:13.6]}
43. Ne2 {[%clk 0:00:36]} 43... Kg5 {[%clk 0:01:12.3]} 44. Ng3 {[%clk 0:00:37]}
44... Kf4 {[%clk 0:01:10.8]} 45. Re1 {[%clk 0:00:28.5]} 45... Rxe5 {[%clk
0:01:07.3]} 46. Nh5+ {[%clk 0:00:21.5]} 46... Kxf5 {[%clk 0:01:07.9]} 47. Ng7+
{[%clk 0:00:22.2]} 47... Kf6 {[%clk 0:01:08.3]} 48. Nh5+ {[%clk 0:00:13.3]}
48... Rxh5 {[%clk 0:01:07.4]} 0-1

[Event "*** Titled Tuesday Blitz"]
[Site "Chess.com"]
[Date "2019.04.02"]
[Round "3"]
[White "Eltarolo"]
[Black "Taron_Shagbazyan"]
[Result "1-0"]
[WhiteElo "2486"]
[BlackElo "2712"]
[TimeControl "180+2"]
[EndTime "14:36:12 PDT"]
[Termination "Eltarolo won by resignation"]

1. e4 {[%clk 0:03:01.9]} 1... e5 {[%clk 0:02:55.6]} 2. Nf3 {[%clk 0:03:02.4]}
2... Nc6 {[%clk 0:02:56.8]} 3. Bb5 {[%clk 0:03:03.3]} 3... a6 {[%clk 0:02:57]}
4. Bxc6 {[%clk 0:02:59.2]} 4... dxc6 {[%clk 0:02:56.8]} 5. O-O {[%clk
0:03:00.8]} 5... Qf6 {[%clk 0:02:57.1]} 6. d4 {[%clk 0:02:59.2]} 6... exd4
{[%clk 0:02:56.9]} 7. Qxd4 {[%clk 0:02:54.1]} 7... Qxd4 {[%clk 0:02:55.4]} 8.
Nxd4 {[%clk 0:02:54.9]} 8... Nf6 {[%clk 0:02:56.2]} 9. Bf4 {[%clk 0:02:50.1]}
9... c5 {[%clk 0:02:51.5]} 10. Nf5 {[%clk 0:02:44.3]} 10... Nxe4 {[%clk
0:02:49.7]} 11. Nh4 {[%clk 0:01:22.1]} 11... Nd6 {[%clk 0:02:46]} 12. Nc3 {[%clk
0:01:18.4]} 12... Be6 {[%clk 0:02:46]} 13. Nf3 {[%clk 0:01:11.1]} 13... h6
{[%clk 0:02:44.4]} 14. Be5 {[%clk 0:00:54]} 14... f6 {[%clk 0:02:43.1]} 15. Bg3
{[%clk 0:00:46.2]} 15... Kf7 {[%clk 0:02:43.2]} 16. h4 {[%clk 0:00:41.9]} 16...
Be7 {[%clk 0:02:35.3]} 17. Rfe1 {[%clk 0:00:41.7]} 17... Rhe8 {[%clk 0:02:35.1]}
18. h5 {[%clk 0:00:38.8]} 18... Rac8 {[%clk 0:02:32.4]} 19. Nh4 {[%clk
0:00:38.3]} 19... Nb5 {[%clk 0:01:54.4]} 20. Nxb5 {[%clk 0:00:19.2]} 20... axb5
{[%clk 0:01:56.3]} 21. Ng6 {[%clk 0:00:21.1]} 21... Bd6 {[%clk 0:01:50.8]} 22.
Bxd6 {[%clk 0:00:14.1]} 22... cxd6 {[%clk 0:01:52.7]} 23. Rad1 {[%clk 0:00:16]}
23... Rcd8 {[%clk 0:01:46.2]} 24. Rd3 {[%clk 0:00:12]} 24... Bg4 {[%clk
0:01:16.2]} 25. Rxe8 {[%clk 0:00:11.2]} 25... Rxe8 {[%clk 0:01:18.1]} 26. Rxd6
{[%clk 0:00:10.3]} 26... Bxh5 {[%clk 0:01:19]} 27. Nf4 {[%clk 0:00:10.9]} 27...
Re1+ {[%clk 0:01:12]} 28. Kh2 {[%clk 0:00:11.7]} 28... Bg4 {[%clk 0:01:13.6]}
29. Rb6 {[%clk 0:00:11.4]} 29... Bc8 {[%clk 0:00:55.3]} 30. Rxb5 {[%clk
0:00:11.3]} 30... Re5 {[%clk 0:00:52.4]} 31. Nd3 {[%clk 0:00:11.4]} 31... Rh5+
{[%clk 0:00:52.9]} 32. Kg1 {[%clk 0:00:10.8]} 32... c4 {[%clk 0:00:53.5]} 33.
Rxh5 {[%clk 0:00:10.6]} 33... cxd3 {[%clk 0:00:54.5]} 34. cxd3 {[%clk
0:00:11.7]} 34... f5 {[%clk 0:00:56.4]} 35. Rh4 {[%clk 0:00:12]} 35... Be6
{[%clk 0:00:56.2]} 36. a3 {[%clk 0:00:09.6]} 36... Bd5 {[%clk 0:00:57.3]} 37.
Rb4 {[%clk 0:00:10.3]} 37... g5 {[%clk 0:00:56.6]} 38. Rb6 {[%clk 0:00:10.1]}
38... h5 {[%clk 0:00:57.1]} 39. a4 {[%clk 0:00:09.3]} 39... h4 {[%clk 0:00:58]}
40. a5 {[%clk 0:00:09.9]} 40... Kg7 {[%clk 0:00:57.8]} 41. b4 {[%clk 0:00:10.6]}
41... Kf7 {[%clk 0:00:58.4]} 42. b5 {[%clk 0:00:11.6]} 42... Ke7 {[%clk
0:00:59.1]} 43. a6 {[%clk 0:00:12.7]} 43... bxa6 {[%clk 0:01:00.5]} 44. bxa6
{[%clk 0:00:13.9]} 44... Kd7 {[%clk 0:01:02.4]} 45. a7 {[%clk 0:00:14.6]} 45...
Kc7 {[%clk 0:01:03.8]} 46. Rb8 {[%clk 0:00:15.7]} 1-0

[Event "*** Titled Tuesday Blitz"]
[Site "Chess.com"]
[Date "2019.04.02"]
[Round "3"]
[White "GM_RobertoMogranzini"]
[Black "Gareth-Bale11"]
[Result "0-1"]
[WhiteElo "2472"]
[BlackElo "2704"]
[TimeControl "180+2"]
[EndTime "14:36:13 PDT"]
[Termination "Gareth-Bale11 won by resignation"]

1. e4 {[%clk 0:03:01.9]} 1... e5 {[%clk 0:02:59.1]} 2. Nf3 {[%clk 0:03:02.7]}
2... Nc6 {[%clk 0:02:59.1]} 3. Bb5 {[%clk 0:03:03.6]} 3... a6 {[%clk 0:02:58.5]}
4. Ba4 {[%clk 0:03:04.3]} 4... Nf6 {[%clk 0:02:59.1]} 5. Qe2 {[%clk 0:03:05.4]}
5... b5 {[%clk 0:02:58.5]} 6. Bb3 {[%clk 0:03:06.3]} 6... Bc5 {[%clk 0:03:00]}
7. c3 {[%clk 0:03:07.1]} 7... d6 {[%clk 0:02:58.2]} 8. d3 {[%clk 0:03:08.3]}
8... O-O {[%clk 0:02:59]} 9. O-O {[%clk 0:03:08.8]} 9... h6 {[%clk 0:02:55.9]}
10. Be3 {[%clk 0:03:09.5]} 10... Rb8 {[%clk 0:02:52.4]} 11. Nbd2 {[%clk
0:03:08.9]} 11... Ng4 {[%clk 0:02:47.3]} 12. Bxc5 {[%clk 0:03:07.3]} 12... dxc5
{[%clk 0:02:49.2]} 13. h3 {[%clk 0:03:02.1]} 13... Nf6 {[%clk 0:02:49.1]} 14.
Rfd1 {[%clk 0:02:53.4]} 14... Qd6 {[%clk 0:02:43.6]} 15. Nf1 {[%clk 0:02:43]}
15... Nh5 {[%clk 0:02:43.1]} 16. Qe3 {[%clk 0:02:33.4]} 16... Rd8 {[%clk
0:02:23.2]} 17. Ng3 {[%clk 0:02:28.7]} 17... Nf4 {[%clk 0:02:20.8]} 18. Kh2
{[%clk 0:02:08.8]} 18... g6 {[%clk 0:01:56.4]} 19. d4 {[%clk 0:01:11.9]} 19...
cxd4 {[%clk 0:01:50]} 20. cxd4 {[%clk 0:01:12.8]} 20... Nxd4 {[%clk 0:01:47]}
21. Nxd4 {[%clk 0:01:12.7]} 21... exd4 {[%clk 0:01:48.9]} 22. Rxd4 {[%clk
0:01:13.7]} 22... Qxd4 {[%clk 0:01:41.9]} 23. Qxf4 {[%clk 0:01:14.9]} 23... Be6
{[%clk 0:01:34.5]} 24. Bxe6 {[%clk 0:01:12.7]} 24... fxe6 {[%clk 0:01:36.4]} 25.
Qxh6 {[%clk 0:01:11.7]} 25... Qg7 {[%clk 0:01:37.1]} 26. Qg5 {[%clk 0:01:05.4]}
26... Rd4 {[%clk 0:01:27.2]} 27. e5 {[%clk 0:01:02.5]} 27... Rf8 {[%clk
0:01:22.4]} 28. f3 {[%clk 0:00:45.8]} 28... Rd5 {[%clk 0:00:55.4]} 29. f4 {[%clk
0:00:42.2]} 29... Rd4 {[%clk 0:00:56.5]} 30. Rf1 {[%clk 0:00:41.7]} 30... c5
{[%clk 0:00:52.8]} 31. Rf3 {[%clk 0:00:32.9]} 31... b4 {[%clk 0:00:49.8]} 32. b3
{[%clk 0:00:33.1]} 32... a5 {[%clk 0:00:46.3]} 33. Rf2 {[%clk 0:00:32.8]} 33...
c4 {[%clk 0:00:45.7]} 34. bxc4 {[%clk 0:00:33.6]} 34... Rxc4 {[%clk 0:00:47.6]}
35. h4 {[%clk 0:00:27.5]} 35... Rf7 {[%clk 0:00:34.6]} 36. Qg4 {[%clk
0:00:28.4]} 36... Qh6 {[%clk 0:00:29.9]} 37. Qxe6 {[%clk 0:00:19.4]} 37... Qxh4+
{[%clk 0:00:22.5]} 38. Qh3 {[%clk 0:00:20.3]} 38... Qxh3+ {[%clk 0:00:23.2]} 39.
Kxh3 {[%clk 0:00:22.2]} 39... Rcxf4 {[%clk 0:00:24.7]} 40. Re2 {[%clk
0:00:22.7]} 40... Rh7+ {[%clk 0:00:25.6]} 0-1

[Event "*** Titled Tuesday Blitz"]
[Site "Chess.com"]
[Date "2019.04.02"]
[Round "3"]
[White "Vusatiuk_Vladimir"]
[Black "norwaytoadog"]
[Result "0-1"]
[WhiteElo "2148"]
[BlackElo "2216"]
[TimeControl "180+2"]
[EndTime "14:36:20 PDT"]
[Termination "norwaytoadog won by resignation"]

1. e4 {[%clk 0:03:01.9]} 1... e5 {[%clk 0:03:00.4]} 2. Nf3 {[%clk 0:03:01.5]}
2... Nc6 {[%clk 0:03:01.6]} 3. d4 {[%clk 0:03:02.2]} 3... exd4 {[%clk
0:03:02.3]} 4. Nxd4 {[%clk 0:03:04.1]} 4... Qf6 {[%clk 0:03:01.3]} 5. Be3 {[%clk
0:02:47.5]} 5... Bc5 {[%clk 0:03:01.5]} 6. c3 {[%clk 0:02:46.6]} 6... Nge7
{[%clk 0:03:00.9]} 7. Nc2 {[%clk 0:02:22.9]} 7... Bb6 {[%clk 0:02:45.6]} 8. Nd2
{[%clk 0:02:19.9]} 8... O-O {[%clk 0:02:42.7]} 9. Be2 {[%clk 0:02:17.4]} 9... d5
{[%clk 0:02:42.7]} 10. Bxb6 {[%clk 0:02:14]} 10... axb6 {[%clk 0:02:42.6]} 11.
exd5 {[%clk 0:02:15.1]} 11... Nxd5 {[%clk 0:02:38.3]} 12. O-O {[%clk 0:02:01.4]}
12... Qg6 {[%clk 0:02:29.2]} 13. Bf3 {[%clk 0:01:54.6]} 13... Nf4 {[%clk
0:02:22.7]} 14. Ne3 {[%clk 0:01:51.2]} 14... Ne5 {[%clk 0:02:16.8]} 15. Ndc4
{[%clk 0:01:09.8]} 15... Ned3 {[%clk 0:02:04.1]} 16. Qc2 {[%clk 0:01:00.1]}
16... b5 {[%clk 0:01:50.4]} 17. Nd2 {[%clk 0:00:58.2]} 17... Nh3+ {[%clk
0:01:43.6]} 18. Kh1 {[%clk 0:00:54.9]} 18... Nhxf2+ {[%clk 0:01:42.3]} 19. Rxf2
{[%clk 0:00:46.6]} 19... Nxf2+ {[%clk 0:01:42.9]} 20. Kg1 {[%clk 0:00:47.9]}
20... Qxc2 {[%clk 0:01:41.7]} 21. Nxc2 {[%clk 0:00:48.1]} 21... Nd3 {[%clk
0:01:42.6]} 22. Be2 {[%clk 0:00:37.2]} 22... Nxb2 {[%clk 0:01:38.6]} 23. Bxb5
{[%clk 0:00:35.6]} 23... c6 {[%clk 0:01:35.1]} 24. Bf1 {[%clk 0:00:34.5]} 24...
Be6 {[%clk 0:01:29.8]} 25. c4 {[%clk 0:00:31.4]} 25... Rfd8 {[%clk 0:01:25.4]}
26. Nb3 {[%clk 0:00:31.7]} 26... Nxc4 {[%clk 0:01:23.8]} 27. Nc5 {[%clk
0:00:31.5]} 27... b5 {[%clk 0:01:15.7]} 28. Nb4 {[%clk 0:00:32.2]} 28... Bd5
{[%clk 0:01:09.3]} 29. Rd1 {[%clk 0:00:24.2]} 29... Ne3 {[%clk 0:01:06.2]} 30.
Re1 {[%clk 0:00:18.9]} 30... Nxf1 {[%clk 0:01:05.6]} 31. Kxf1 {[%clk 0:00:20.3]}
31... g6 {[%clk 0:01:02.7]} 32. Re7 {[%clk 0:00:20.3]} 32... Kf8 {[%clk
0:00:54.9]} 33. Rc7 {[%clk 0:00:19.1]} 33... Bxa2 {[%clk 0:00:53.1]} 34. Nxc6
{[%clk 0:00:17.5]} 34... Bc4+ {[%clk 0:00:53.1]} 35. Ke1 {[%clk 0:00:12.2]}
35... Ra1+ {[%clk 0:00:51.6]} 36. Kf2 {[%clk 0:00:12.3]} 36... Ra2+ {[%clk
0:00:50.9]} 37. Kf3 {[%clk 0:00:06.9]} 37... Bd5+ {[%clk 0:00:49.9]} 38. Kf4
{[%clk 0:00:07.9]} 38... Bxc6 {[%clk 0:00:48.8]} 39. Rxc6 {[%clk 0:00:07.9]}
39... Rxg2 {[%clk 0:00:42.8]} 40. h4 {[%clk 0:00:08.8]} 40... h5 {[%clk
0:00:42.6]} 41. Ne4 {[%clk 0:00:09.2]} 41... Rg4+ {[%clk 0:00:42.9]} 42. Ke5
{[%clk 0:00:10.5]} 42... Re8+ {[%clk 0:00:43.7]} 43. Kd5 {[%clk 0:00:10.4]}
43... Rgxe4 {[%clk 0:00:44]} 44. Rc8 {[%clk 0:00:11.6]} 44... Rxc8 {[%clk
0:00:44]} 0-1

[Event "*** Titled Tuesday Blitz"]
[Site "Chess.com"]
[Date "2019.04.02"]
[Round "3"]
[White "FERNANDEZL1983"]
[Black "Ali_rastbod"]
[Result "1/2-1/2"]
[WhiteElo "2434"]
[BlackElo "2599"]
[TimeControl "180+2"]
[EndTime "14:36:25 PDT"]
[Termination "Game drawn by agreement"]

1. d4 {[%clk 0:03:01.9]} 1... g6 {[%clk 0:02:56.8]} 2. c4 {[%clk 0:03:01.6]}
2... Bg7 {[%clk 0:02:58]} 3. Nc3 {[%clk 0:03:02.7]} 3... d6 {[%clk 0:02:58.4]}
4. e4 {[%clk 0:03:01.6]} 4... e5 {[%clk 0:02:58.6]} 5. dxe5 {[%clk 0:03:00.5]}
5... dxe5 {[%clk 0:03:00.5]} 6. Qxd8+ {[%clk 0:02:57.8]} 6... Kxd8 {[%clk
0:03:02.4]} 7. Bg5+ {[%clk 0:02:57.7]} 7... f6 {[%clk 0:02:59.1]} 8. Be3 {[%clk
0:02:57.9]} 8... Bh6 {[%clk 0:02:51.8]} 9. O-O-O+ {[%clk 0:02:57.2]} 9... Nd7
{[%clk 0:02:52.2]} 10. Bxh6 {[%clk 0:02:56.8]} 10... Nxh6 {[%clk 0:02:54.1]} 11.
f3 {[%clk 0:02:57.9]} 11... c6 {[%clk 0:02:52.3]} 12. b4 {[%clk 0:02:56.5]}
12... a5 {[%clk 0:02:50.8]} 13. a3 {[%clk 0:02:53.2]} 13... Ke7 {[%clk
0:02:48.7]} 14. Kb2 {[%clk 0:02:53.2]} 14... Nf8 {[%clk 0:02:42.8]} 15. Nge2
{[%clk 0:02:52.4]} 15... Ne6 {[%clk 0:02:42.4]} 16. Nc1 {[%clk 0:02:50.7]} 16...
Nf7 {[%clk 0:02:39.7]} 17. Nb3 {[%clk 0:02:51.3]} 17... axb4 {[%clk 0:02:39.8]}
18. axb4 {[%clk 0:02:51.6]} 18... Bd7 {[%clk 0:02:41.7]} 19. c5 {[%clk
0:02:52.6]} 19... Nc7 {[%clk 0:02:36.6]} 20. Na5 {[%clk 0:02:50.8]} 20... Rab8
{[%clk 0:02:30.7]} 21. Nc4 {[%clk 0:02:50]} 21... Be6 {[%clk 0:02:28.9]} 22. Nb6
{[%clk 0:02:50.4]} 22... Rhd8 {[%clk 0:02:21]} 23. Be2 {[%clk 0:02:51.1]} 23...
f5 {[%clk 0:02:16.7]} 24. Rxd8 {[%clk 0:02:38]} 24... Rxd8 {[%clk 0:02:09.7]}
25. Kc2 {[%clk 0:02:36.5]} 25... Rd4 {[%clk 0:02:05.3]} 26. Rb1 {[%clk
0:02:34.6]} 26... h5 {[%clk 0:01:38.6]} 27. Bd3 {[%clk 0:02:33.9]} 27... h4
{[%clk 0:01:36.8]} 28. Ne2 {[%clk 0:02:31.3]} 28... Rd8 {[%clk 0:01:37.5]} 29.
Ra1 {[%clk 0:02:30.8]} 29... Rb8 {[%clk 0:01:34.2]} 30. Ra7 {[%clk 0:02:30.1]}
30... Kf6 {[%clk 0:01:27.7]} 31. Bc4 {[%clk 0:02:26.9]} 31... Bxc4 {[%clk
0:01:25.6]} 32. Nd7+ {[%clk 0:02:25]} 32... Ke6 {[%clk 0:00:39.2]} 33. Nxb8
{[%clk 0:02:22.8]} 33... Bxe2 {[%clk 0:00:36.2]} 34. Rxb7 {[%clk 0:02:23.9]}
34... Nb5 {[%clk 0:00:29.3]} 35. Nxc6 {[%clk 0:02:23.8]} 35... fxe4 {[%clk
0:00:25.7]} 36. fxe4 {[%clk 0:02:24.2]} 36... Ng5 {[%clk 0:00:27]} 37. Kd2
{[%clk 0:02:22.3]} 37... Bf1 {[%clk 0:00:28.1]} 38. Ke3 {[%clk 0:02:19.3]} 38...
Nc3 {[%clk 0:00:24.9]} 39. Re7+ {[%clk 0:02:16]} 39... Kf6 {[%clk 0:00:25.5]}
40. Rxe5 {[%clk 0:02:16.8]} 40... Bb5 {[%clk 0:00:21.3]} 41. Rxg5 {[%clk
0:02:01.9]} 41... Kxg5 {[%clk 0:00:23.2]} 42. Nd4 {[%clk 0:02:02.7]} 42... Kf6
{[%clk 0:00:24.4]} 43. Kf4 {[%clk 0:01:52.2]} 43... g5+ {[%clk 0:00:24.7]} 44.
Ke3 {[%clk 0:01:51.4]} 44... Ke5 {[%clk 0:00:19.9]} 45. Nf3+ {[%clk 0:01:51.5]}
45... Kf6 {[%clk 0:00:20.1]} 46. Kd4 {[%clk 0:01:51.4]} 46... Ne2+ {[%clk
0:00:21.2]} 47. Ke3 {[%clk 0:01:52.2]} 47... Nc3 {[%clk 0:00:21.8]} 48. g3
{[%clk 0:01:52.3]} 48... hxg3 {[%clk 0:00:21.6]} 49. hxg3 {[%clk 0:01:53.5]}
49... Be8 {[%clk 0:00:22.5]} 50. g4 {[%clk 0:01:51.9]} 50... Nb5 {[%clk
0:00:23.3]} 51. Nd4 {[%clk 0:01:50.1]} 51... Ke5 {[%clk 0:00:22.7]} 52. Nf3+
{[%clk 0:01:50.1]} 52... Kf6 {[%clk 0:00:23.1]} 53. e5+ {[%clk 0:01:51.4]} 53...
Ke6 {[%clk 0:00:24.3]} 54. Nxg5+ {[%clk 0:01:50]} 54... Kxe5 {[%clk 0:00:24.9]}
55. Nf3+ {[%clk 0:01:51.7]} 55... Kd5 {[%clk 0:00:26.5]} 56. g5 {[%clk
0:01:49.8]} 56... Kc4 {[%clk 0:00:27.1]} 57. Ne5+ {[%clk 0:01:50.8]} 57... Kxb4
{[%clk 0:00:28.1]} 58. c6 {[%clk 0:01:52.1]} 58... Kc5 {[%clk 0:00:28.2]} 59. g6
{[%clk 0:01:50.1]} 59... Bxg6 {[%clk 0:00:27.9]} 60. Nxg6 {[%clk 0:01:51.2]}
60... Kxc6 {[%clk 0:00:29.1]} 61. Ne5+ {[%clk 0:01:51.4]} 61... Kd5 {[%clk
0:00:29.3]} 62. Nd3 {[%clk 0:01:50.8]} 62... Nd6 {[%clk 0:00:31.2]} 63. Nf4+
{[%clk 0:01:51.2]} 63... Ke5 {[%clk 0:00:32.8]} 64. Nd3+ {[%clk 0:01:51.9]}
64... Kd5 {[%clk 0:00:34.7]} 65. Nf4+ {[%clk 0:01:52.9]} 65... Ke5 {[%clk
0:00:36.6]} 1/2-1/2

[Event "*** Titled Tuesday Blitz"]
[Site "Chess.com"]
[Date "2019.04.02"]
[Round "3"]
[White "TST2014"]
[Black "BlueWizzard"]
[Result "0-1"]
[WhiteElo "2516"]
[BlackElo "2719"]
[TimeControl "180+2"]
[EndTime "14:36:32 PDT"]
[Termination "BlueWizzard won by checkmate"]

1. d4 {[%clk 0:03:01.9]} 1... e6 {[%clk 0:03:01.9]} 2. c4 {[%clk 0:03:02.1]}
2... f5 {[%clk 0:03:01.9]} 3. Nf3 {[%clk 0:03:02.3]} 3... Nf6 {[%clk 0:03:03.3]}
4. g3 {[%clk 0:03:03.5]} 4... Bb4+ {[%clk 0:03:04.1]} 5. Bd2 {[%clk 0:03:02.5]}
5... Be7 {[%clk 0:03:04.8]} 6. Bg2 {[%clk 0:03:02.5]} 6... O-O {[%clk
0:03:06.4]} 7. O-O {[%clk 0:03:03.7]} 7... c6 {[%clk 0:03:06.5]} 8. Qe1 {[%clk
0:02:42.5]} 8... b6 {[%clk 0:03:05]} 9. Bb4 {[%clk 0:02:42.6]} 9... d6 {[%clk
0:03:03.7]} 10. Nc3 {[%clk 0:02:38.2]} 10... Bb7 {[%clk 0:02:59.7]} 11. c5
{[%clk 0:02:33.8]} 11... dxc5 {[%clk 0:02:45.1]} 12. dxc5 {[%clk 0:02:32.6]}
12... a5 {[%clk 0:02:44.9]} 13. Rd1 {[%clk 0:02:31.3]} 13... Nbd7 {[%clk
0:02:43.2]} 14. Ba3 {[%clk 0:02:26.5]} 14... b5 {[%clk 0:02:44.1]} 15. Ne5
{[%clk 0:02:20.3]} 15... b4 {[%clk 0:02:40.9]} 16. Nxc6 {[%clk 0:02:20.7]} 16...
Bxc6 {[%clk 0:02:41.7]} 17. Bxc6 {[%clk 0:02:21.7]} 17... Rc8 {[%clk 0:02:43.1]}
18. Bxd7 {[%clk 0:01:52.4]} 18... Nxd7 {[%clk 0:02:42]} 19. Na4 {[%clk 0:01:54]}
19... Qc7 {[%clk 0:02:28.4]} 20. Bxb4 {[%clk 0:01:48.3]} 20... axb4 {[%clk
0:02:28.6]} 21. Qxb4 {[%clk 0:01:49.9]} 21... Nxc5 {[%clk 0:02:21.8]} 22. Rc1
{[%clk 0:01:48.8]} 22... Nxa4 {[%clk 0:02:18.9]} 23. Qxa4 {[%clk 0:01:44]} 23...
Qb7 {[%clk 0:02:01]} 24. b3 {[%clk 0:01:37.1]} 24... Bg5 {[%clk 0:01:31.1]} 25.
e3 {[%clk 0:01:36]} 25... Rfd8 {[%clk 0:01:28.6]} 26. Rfd1 {[%clk 0:01:32.3]}
26... Qf3 {[%clk 0:01:20.7]} 27. Rxd8+ {[%clk 0:01:18.5]} 27... Rxd8 {[%clk
0:01:21.3]} 28. Qc4 {[%clk 0:01:19.5]} 28... Kf7 {[%clk 0:01:15.4]} 29. Qc7+
{[%clk 0:01:18.7]} 29... Kg6 {[%clk 0:01:10.3]} 30. Qc4 {[%clk 0:01:14.6]} 30...
Rd5 {[%clk 0:00:55.8]} 31. a4 {[%clk 0:01:12.9]} 31... Bxe3 {[%clk 0:00:46.6]}
32. fxe3 {[%clk 0:01:09.6]} 32... Qxe3+ {[%clk 0:00:44.8]} 33. Kg2 {[%clk
0:01:10]} 33... Rd4 {[%clk 0:00:27]} 34. Qf1 {[%clk 0:00:56.8]} 34... Rd2+
{[%clk 0:00:25.5]} 35. Kh1 {[%clk 0:00:57.5]} 35... Qe4+ {[%clk 0:00:26.1]} 36.
Kg1 {[%clk 0:00:58.2]} 36... Qe3+ {[%clk 0:00:27.7]} 37. Kh1 {[%clk 0:00:58.9]}
37... Qxb3 {[%clk 0:00:29.4]} 38. Re1 {[%clk 0:00:52.1]} 38... Qa2 {[%clk
0:00:27.5]} 39. Qh3 {[%clk 0:00:47.7]} 39... Qd5+ {[%clk 0:00:20.7]} 40. Kg1
{[%clk 0:00:48]} 40... Qd4+ {[%clk 0:00:22.3]} 41. Kh1 {[%clk 0:00:48.6]} 41...
Qf2 {[%clk 0:00:23.6]} 42. Rf1 {[%clk 0:00:48.4]} 42... Qe2 {[%clk 0:00:24.1]}
43. a5 {[%clk 0:00:44.5]} 43... Ra2 {[%clk 0:00:23.1]} 44. g4 {[%clk 0:00:26]}
44... fxg4 {[%clk 0:00:23.4]} 45. Rg1 {[%clk 0:00:10.4]} 45... Qe4+ {[%clk
0:00:22.9]} 46. Rg2 {[%clk 0:00:09.5]} 46... Ra1# {[%clk 0:00:23.6]} 0-1